bitfinex/quotes_ETHUSD_20230109
["timestamp","ask_amount","ask_price","bid_price","bid_amount"]
[1673307627049,9.32727955,1322.8,1322.6,8.066]
[1673307627257,7.62829206,1322.8,1322.6,8.066]
[1673307627483,0.066,1322.8,1322.7,3.79766064]
[1673307627696,4.02788384,1322.9,1322.7,15.12058]
[1673307627933,3.96188384,1322.9,1322.7,15.18658]
[1673307628295,3.96188384,1322.9,1322.7,22.74687]
[1673307628644,3.96188384,1322.9,1322.7,15.18658]
[1673307629388,1.69898749,1322.9,1322.7,15.18658]
[1673307629649,1.69898749,1322.9,1322.7,22.74687]
[1673307630193,1.69898749,1322.9,1322.7,15.18658]
[1673307630401,1.69898749,1322.9,1322.7,7.62629]
[1673307630654,3.96188384,1322.9,1322.7,7.62629]
[1673307630972,1.69898749,1322.9,1322.7,15.18658]
[1673307631285,1.69898749,1322.9,1322.7,7.62629]
[1673307631659,2.83062221,1322.9,1322.7,7.62629]
[1673307632020,1.13163472,1322.8,1322.7,15.18658]
[1673307632238,1.13163472,1322.8,1322.7,0.066]
[1673307632391,1.13163472,1322.8,1322.7,7.56029]
[1673307632605,1.13163472,1322.8,1322.7,7.62629]
[1673307634073,1.13163472,1322.8,1322.7,0.066]
[1673307634281,1.13163472,1322.8,1322.7,7.56029]
[1673307634491,1.13163472,1322.8,1322.7,0.066]
[1673307634698,1.13163472,1322.8,1322.6,34.54510064]
[1673307636400,10.45579221,1322.9,1322.6,34.54510064]
[1673307637020,1.13163472,1322.8,1322.6,34.54510064]
[1673307637540,10.45579221,1322.9,1322.6,34.54510064]
[1673307639135,1.13163472,1322.8,1322.6,34.54510064]
[1673307644389,1.13163472,1322.8,1322.6,11.86366064]
[1673307644584,17.95034221,1322.8,1322.6,11.86366064]
[1673307644817,25.57620221,1322.8,1322.6,11.86366064]
[1673307645071,25.57620221,1322.8,1322.6,8.066]
[1673307645264,1.13231156,1322.7,1322.6,0.066]
[1673307645477,1.13231156,1322.7,1322.5,3.0]
[1673307645478,16.25289156,1322.7,1322.5,3.0]
[1673307645704,16.31889156,1322.7,1322.5,6.79766064]
[1673307645868,16.31889156,1322.7,1322.5,6.86366064]
[1673307646073,16.31889156,1322.7,1322.5,3.066]
[1673307646329,18.01787905,1322.7,1322.5,3.0]
[1673307646601,2.89729905,1322.7,1322.5,2.99730921]
[1673307646834,2.83129905,1322.7,1322.5,2.99730921]
[1673307647474,1.13231156,1322.7,1322.5,2.99730921]
[1673307647668,2.83129905,1322.7,1322.5,2.99730921]
[1673307647881,1.13231156,1322.7,1322.5,2.99730921]
[1673307648104,2.83129905,1322.7,1322.5,10.55866921]
[1673307648314,2.83129905,1322.7,1322.5,10.62466921]
[1673307648315,1.13231156,1322.7,1322.5,10.62466921]
[1673307648523,8.69265156,1322.7,1322.5,10.62466921]
[1673307648738,8.75865156,1322.7,1322.5,10.62466921]
[1673307649277,8.75865156,1322.7,1322.5,3.06330921]
[1673307649494,8.75865156,1322.7,1322.5,10.55868921]
[1673307649646,1.19831156,1322.7,1322.5,10.62458921]
[1673307649861,1.13231156,1322.7,1322.5,10.62458921]
[1673307650382,1.13231156,1322.6,1322.5,3.06330921]
[1673307650594,1.13231156,1322.6,1322.4,16.10536732]
[1673307650595,25.51387905,1322.6,1322.4,16.10536732]
[1673307650856,16.32003156,1322.6,1322.4,11.89012796]
[1673307651587,8.75917156,1322.6,1322.4,11.89012796]
[1673307652122,8.75917156,1322.6,1322.4,19.45202796]
[1673307652906,16.32003156,1322.6,1322.4,11.89012796]
[1673307653629,8.75917156,1322.6,1322.4,11.89012796]
[1673307653840,23.88089156,1322.6,1322.4,11.89012796]
[1673307654269,16.32003156,1322.6,1322.4,11.89012796]
[1673307654423,23.88089156,1322.6,1322.4,11.89012796]
[1673307654634,23.88089156,1322.6,1322.4,8.09246732]
[1673307654635,16.32003156,1322.6,1322.4,8.09246732]
[1673307657522,8.75917156,1322.6,1322.4,8.09246732]
[1673307657698,1.19831156,1322.6,1322.4,30.77845732]
[1673307657908,1.13231156,1322.6,1322.4,30.77845732]
[1673307658468,4.12983111,1322.7,1322.4,30.77845732]
[1673307658671,1.13231156,1322.6,1322.4,105.99919174]
[1673307659261,1.13231156,1322.6,1322.4,98.43719174]
[1673307659683,1.13231156,1322.6,1322.4,102.23485238]
[1673307659892,2.83129905,1322.7,1322.6,1.12570918]
[1673307660101,2.83073418,1322.7,1322.6,1.12570918]
[1673307660469,2.83076026,1322.7,1322.6,1.12570918]
[1673307660693,3.96188384,1322.7,1322.6,1.12570918]
[1673307660834,1.69898749,1322.7,1322.6,1.12570918]
[1673307661052,2.83075949,1322.7,1322.6,1.12570918]
[1673307661260,1.69898749,1322.7,1322.6,1.12570918]
[1673307661993,2.83081741,1322.7,1322.6,1.12570918]
[1673307662220,2.83081385,1322.7,1322.6,1.12570918]
[1673307662566,2.83081176,1322.7,1322.6,1.12570918]
[1673307662735,1.69898749,1322.7,1322.6,1.12570918]
[1673307664874,2.83091712,1322.7,1322.6,1.12570918]
[1673307665036,1.69898749,1322.7,1322.6,1.12570918]
[1673307665250,2.83088255,1322.7,1322.6,1.12570918]
[1673307665477,2.83088255,1322.7,1322.6,8.68656918]
[1673307665730,2.83088255,1322.7,1322.6,1.19170918]
[1673307665918,2.83088255,1322.7,1322.6,1.12570918]
[1673307666942,1.13189506,1322.7,1322.6,1.12570918]
[1673307668634,2.83088255,1322.7,1322.6,1.12570918]
[1673307668874,19.08246384,1322.7,1322.6,1.12570918]
[1673307669082,19.14846384,1322.7,1322.6,1.12570918]
[1673307669307,11.58817384,1322.7,1322.6,1.12570918]
[1673307670870,25.00976635,1322.7,1322.6,1.12570918]
[1673307671252,17.44947635,1322.7,1322.6,1.12236965]
[1673307671461,9.88918635,1322.7,1322.6,1.12236965]
[1673307671732,17.44947635,1322.7,1322.6,1.12236965]
[1673307672298,9.88918635,1322.7,1322.6,1.12236965]
[1673307672924,19.14744393,1322.7,1322.6,1.12236965]
[1673307674002,27.83917841,1322.7,1322.6,1.12236965]
[1673307675902,20.27888841,1322.7,1322.6,1.12236965]
[1673307676231,27.83917841,1322.7,1322.6,1.12236965]
[1673307677574,29.05817841,1322.7,1322.6,1.12236965]
[1673307677914,23.96587,1322.7,1322.6,1.12236965]
[1673307678123,39.74261549,1322.7,1322.6,1.12236965]
[1673307679390,32.18232549,1322.7,1322.6,1.12236965]
[1673307679719,32.18232549,1322.7,1322.4,0.02646732]
[1673307679720,40.85231927,1322.7,1322.4,0.02646732]
[1673307679861,27.31100551,1322.5,1322.4,0.02646732]
[1673307680071,31.53248963,1322.5,1322.4,0.02646732]
[1673307680438,32.75548963,1322.5,1322.4,0.02646732]
[1673307680756,36.55315027,1322.5,1322.4,0.02646732]
[1673307681348,33.15643476,1322.5,1322.4,0.02646732]
[1673307681571,29.56825064,1322.5,1322.4,0.02646732]
[1673307682119,32.39688844,1322.5,1322.4,0.02646732]
[1673307685791,34.65859463,1322.5,1322.4,0.02646732]
[1673307686166,39.95831844,1322.5,1322.4,0.02646732]
[1673307686709,43.54650256,1322.5,1322.4,0.02646732]
[1673307686899,39.95831844,1322.5,1322.4,0.02646732]
[1673307687112,42.21955358,1322.5,1322.4,0.02646732]
[1673307687541,45.8077377,1322.5,1322.4,0.02646732]
[1673307689244,39.95831844,1322.5,1322.4,0.02646732]
[1673307689451,43.54650256,1322.5,1322.4,0.02646732]
[1673307690070,39.95831844,1322.5,1322.4,0.02646732]
[1673307690258,38.72831844,1322.5,1322.4,0.02646732]
[1673307690716,40.98935018,1322.5,1322.4,0.02646732]
[1673307691102,44.5775343,1322.5,1322.4,0.02646732]
[1673307691314,40.98935018,1322.5,1322.4,0.02646732]
[1673307692065,44.5775343,1322.5,1322.4,0.02646732]
[1673307692280,40.98935018,1322.5,1322.4,0.02646732]
[1673307692471,33.42792018,1322.5,1322.4,0.02646732]
[1673307692892,40.98935018,1322.5,1322.4,0.02646732]
[1673307694813,44.5775343,1322.5,1322.4,0.02646732]
[1673307698066,40.98935018,1322.5,1322.4,0.02646732]
[1673307698570,44.5775343,1322.5,1322.4,0.02646732]
[1673307698783,42.31650256,1322.5,1322.4,0.02646732]
[1673307699000,42.31650256,1322.5,1322.4,7.32e-06]
[1673307699211,51.10093256,1322.5,1322.4,7.32e-06]
[1673307700783,48.27229476,1322.5,1322.4,7.32e-06]
[1673307701014,40.71086476,1322.5,1322.4,7.32e-06]
[1673307701195,43.53578324,1322.5,1322.4,7.32e-06]
[1673307701784,39.94759912,1322.5,1322.4,7.32e-06]
[1673307703780,40.98467858,1322.5,1322.4,7.32e-06]
[1673307703978,38.72459912,1322.5,1322.4,7.32e-06]
[1673307704428,38.15729912,1322.5,1322.4,7.32e-06]
[1673307704618,40.41738228,1322.5,1322.4,7.32e-06]
[1673307704804,38.15729912,1322.5,1322.4,7.32e-06]
[1673307705477,40.41787315,1322.5,1322.4,7.32e-06]
[1673307706712,44.00605727,1322.5,1322.4,7.32e-06]
[1673307707055,38.15729912,1322.5,1322.4,7.32e-06]
[1673307707265,38.15929076,1322.5,1322.4,7.32e-06]
[1673307708935,42.88458027,1322.5,1322.4,7.32e-06]
[1673307709638,44.86293745,1322.5,1322.4,7.32e-06]
[1673307711325,43.64093745,1322.5,1322.4,7.32e-06]
[1673307713485,42.96143513,1322.5,1322.4,7.32e-06]
[1673307713673,44.18843513,1322.5,1322.4,7.32e-06]
[1673307716200,43.62113513,1322.5,1322.4,7.32e-06]
[1673307723565,43.62113513,1322.5,1322.2,0.02646732]
[1673307723566,0.00335203,1322.4,1322.2,0.02646732]
[1673307723784,31.81867662,1322.3,1322.2,0.02646732]
[1673307723954,31.88467662,1322.3,1322.2,0.02646732]
[1673307726677,40.01400201,1322.3,1322.2,0.02646732]
[1673307727304,9.76368201,1322.3,1322.2,0.02646732]
[1673307727521,40.01400201,1322.3,1322.2,0.02646732]
[1673307733519,40.06400201,1322.3,1322.2,0.02646732]
[1673307733731,40.01400201,1322.3,1322.2,0.02646732]
[1673307734664,37.51400201,1322.3,1322.2,0.02646732]
[1673307738027,30.31632,1322.3,1322.2,0.02646732]
[1673307739179,33.71634137,1322.3,1322.2,0.02646732]
[1673307741499,33.71634137,1322.3,1322.2,1.32546732]
[1673307741500,2.90025084,1322.3,1322.2,1.32546732]
[1673307741709,2.83425084,1322.3,1322.2,1.32546732]
[1673307741923,5.10152265,1322.3,1322.2,1.32546732]
[1673307742146,5.16752265,1322.3,1322.2,1.32546732]
[1673307742358,2.90025084,1322.3,1322.2,1.32546732]
[1673307742583,5.10141386,1322.3,1322.2,1.32546732]
[1673307742834,10.46283084,1322.3,1322.2,1.32546732]
[1673307743009,12.73002837,1322.3,1322.2,1.32546732]
[1673307743164,12.7301395,1322.3,1322.2,1.32546732]
[1673307743520,5.16757779,1322.3,1322.2,1.32546732]
[1673307747022,5.16757779,1322.3,1322.2,1.32169798]
[1673307748108,5.16757779,1322.3,1322.2,8.88484798]
[1673307748362,5.16757779,1322.3,1322.2,11.48435305]
[1673307749104,5.16757779,1322.3,1322.2,3.92120305]
[1673307749411,5.16757779,1322.3,1322.2,11.41835305]
[1673307749622,5.16757779,1322.3,1322.2,11.48435305]
[1673307750455,2.89932353,1322.3,1322.2,28.86687979]
[1673307750645,2.89932353,1322.3,1322.2,39.66002979]
[1673307750646,1.13332941,1322.3,1322.2,39.66002979]
[1673307750857,1.76934615,1322.4,1322.2,41.53664309]
[1673307751069,1.76934615,1322.4,1322.3,3.726]
[1673307751070,2.83654915,1322.4,1322.3,3.726]
[1673307751279,1.13655503,1322.4,1322.3,29.11681298]
[1673307751615,1.13651727,1322.4,1322.3,29.18281298]
[1673307751791,1.13650076,1322.4,1322.3,29.18281298]
[1673307752006,1.13650111,1322.4,1322.3,29.18281298]
[1673307752214,1.13650111,1322.4,1322.3,26.68281298]
[1673307752215,1.13651532,1322.4,1322.3,26.68281298]
[1673307754036,1.13651532,1322.4,1322.3,30.48047362]
[1673307754437,0.00335203,1322.4,1322.3,30.48047362]
[1673307754677,0.00335203,1322.4,1322.3,31.94047362]
[1673307755377,0.00335203,1322.4,1322.3,31.95281058]
[1673307755795,0.00335203,1322.4,1322.3,39.51539058]
[1673307758778,0.00335203,1322.4,1322.3,39.66990397]
[1673307761269,0.00335203,1322.4,1322.3,53.20383309]
[1673307761528,0.00335203,1322.4,1322.3,49.62430397]
[1673307763411,2.83315741,1322.7,1322.5,22.68429]
[1673307763636,2.83315741,1322.7,1322.6,1.22]
[1673307764159,2.83315741,1322.7,1322.6,8.78086]
[1673307764376,2.83315741,1322.7,1322.6,8.84686]
[1673307765070,2.83315741,1322.7,1322.6,16.40772]
[1673307765279,2.83315741,1322.7,1322.6,8.84686]
[1673307766050,1.13316329,1322.7,1322.6,8.84686]
[1673307767899,1.13316329,1322.7,1322.6,16.40772]
[1673307768330,11.28145741,1322.8,1322.6,16.40772]
[1673307768542,11.28145741,1322.8,1322.7,1.22]
[1673307768737,2.89915741,1322.8,1322.7,1.22]
[1673307768958,2.83315741,1322.8,1322.7,1.22]
[1673307769297,2.83315741,1322.8,1322.7,1.21781618]
[1673307769633,20.85346779,1322.9,1322.7,38.36670517]
[1673307769634,3.46635741,1322.9,1322.7,38.36670517]
[1673307769836,3.07751953,1323.0,1322.8,2.45]
[1673307770012,1.13316329,1322.9,1322.8,12.58718064]
[1673307770215,1.13316329,1322.9,1322.8,6.32066064]
[1673307770443,1.13316329,1322.9,1322.8,2.523]
[1673307770674,1.13316329,1322.9,1322.8,2.457]
[1673307770839,1.13316329,1322.9,1322.8,1.23]
[1673307771485,1.13316329,1322.9,1322.7,11.87726835]
[1673307771787,1.13316329,1322.9,1322.7,15.67492899]
[1673307772203,1.13316329,1322.9,1322.7,23.23516899]
[1673307772652,2.83315741,1322.9,1322.7,23.23516899]
[1673307774209,2.83315741,1322.9,1322.7,21.35510064]
[1673307774632,10.39232741,1322.9,1322.7,13.79486064]
[1673307774948,1.69999412,1322.8,1322.7,9.9972]
[1673307775383,3.96732107,1322.8,1322.7,9.9972]
[1673307775594,1.69999412,1322.8,1322.7,9.9972]
[1673307775817,1.69999412,1322.8,1322.7,0.066]
[1673307776140,1.69999412,1322.8,1322.4,120.08203442]
[1673307776317,1.12882061,1322.7,1322.4,115.87969506]
[1673307776768,1.12882061,1322.7,1322.4,123.44169506]
[1673307776965,1.12882061,1322.7,1322.4,138.49352985]
[1673307779172,1.12882061,1322.7,1322.4,146.05552985]
[1673307780237,1.12882061,1322.7,1322.4,138.05552985]
[1673307780400,2.82881473,1322.7,1322.5,23.25089]
[1673307780614,2.82881473,1322.7,1322.5,23.31689]
[1673307780828,2.82881473,1322.7,1322.5,22.74959]
[1673307781067,2.82881473,1322.7,1322.5,15.18816]
[1673307781286,5.32881473,1322.7,1322.5,15.18816]
[1673307781471,2.89481473,1322.7,1322.5,15.18816]
[1673307781694,1.12882061,1322.6,1322.5,15.18816]
[1673307781910,2.82881473,1322.7,1322.5,15.18816]
[1673307782091,1.12882061,1322.6,1322.5,15.18816]
[1673307782296,1.12882061,1322.6,1322.5,22.74959]
[1673307783809,2.82881473,1322.7,1322.5,22.74959]
[1673307784613,1.12882061,1322.6,1322.5,22.74759]
[1673307784837,1.12882061,1322.6,1322.5,22.74959]
[1673307786109,2.82881473,1322.7,1322.5,22.74959]
[1673307786520,1.12882061,1322.6,1322.5,22.74959]
[1673307790534,2.89481473,1322.7,1322.5,30.31102]
[1673307790754,2.82881473,1322.7,1322.5,30.31102]
[1673307791337,1.12882061,1322.7,1322.5,30.31102]
[1673307791791,2.82881473,1322.7,1322.5,30.31102]
[1673307792380,2.82881473,1322.7,1322.5,22.74959]
[1673307793485,2.82881473,1322.7,1322.5,22.74705572]
[1673307796430,1.12882061,1322.7,1322.5,36.1294707]
[1673307798418,1.12882061,1322.7,1322.5,38.94361589]
[1673307798741,1.12882061,1322.7,1322.5,36.1294707]
[1673307799108,1.12882061,1322.7,1322.6,3.79766064]
[1673307799320,1.12882061,1322.7,1322.6,26.71024064]
[1673307799588,1.12882061,1322.7,1322.6,26.77624064]
[1673307800108,1.12882061,1322.7,1322.6,34.31487615]
[1673307800262,10.93671473,1322.8,1322.6,41.87573615]
[1673307800472,10.93671473,1322.8,1322.7,2.5]
[1673307800745,10.93671473,1322.8,1322.7,32.74116]
[1673307800746,2.89481473,1322.8,1322.7,32.74116]
[1673307800939,2.82881473,1322.8,1322.7,32.80716]
[1673307801668,2.82881473,1322.8,1322.7,22.74687]
[1673307801989,1.69999412,1322.8,1322.7,22.74687]
[1673307802200,3.96732107,1322.8,1322.7,0.066]
[1673307802417,3.96732107,1322.8,1322.6,15.41731]
[1673307802573,1.13230906,1322.7,1322.6,19.21497064]
[1673307802946,1.13230906,1322.7,1322.6,26.77583064]
[1673307806712,1.13430906,1322.7,1322.6,26.77383064]
[1673307806923,1.13230906,1322.7,1322.6,34.31446615]
[1673307808370,1.13230906,1322.7,1322.6,26.77583064]
[1673307818654,2.83230318,1322.7,1322.6,26.77583064]
[1673307819392,1.13230906,1322.7,1322.6,26.77583064]
[1673307820068,1.13230906,1322.7,1322.6,34.33669064]
[1673307820279,1.13251228,1322.7,1322.6,34.33669064]
[1673307820493,1.69999412,1322.8,1322.6,38.25310322]
[1673307820806,1.69999412,1322.8,1322.7,29.20853064]
[1673307821118,1.69999412,1322.8,1322.7,36.83482064]
[1673307821119,2.83244801,1322.8,1322.7,36.83482064]
[1673307821286,1.13245389,1322.8,1322.7,36.83482064]
[1673307821495,2.83244801,1322.8,1322.7,36.83482064]
[1673307821815,1.13245389,1322.8,1322.7,41.03194396]
[1673307822478,2.83244801,1322.8,1322.7,41.03194396]
[1673307824486,2.83244801,1322.8,1322.7,38.53194396]
[1673307825064,1.13245389,1322.8,1322.7,30.97165396]
[1673307826759,2.83244801,1322.8,1322.7,30.97165396]
[1673307827555,1.13245389,1322.8,1322.7,30.97165396]
[1673307827841,2.83244801,1322.8,1322.7,30.97165396]
[1673307829918,4.03332107,1322.9,1322.7,30.96898027]
[1673307830144,3.96732107,1322.9,1322.8,28.97682064]
[1673307830337,3.96732107,1322.9,1322.8,29.27282064]
[1673307831227,3.96732107,1322.9,1322.8,26.77282064]
[1673307832446,2.26732695,1322.9,1322.8,26.77282064]
[1673307833067,3.96679244,1322.9,1322.8,26.77282064]
[1673307834886,5.10157779,1322.9,1322.8,7.62572]
[1673307835096,2.90025084,1322.9,1322.8,0.066]
[1673307835305,2.83425084,1322.9,1322.7,22.74589]
[1673307835637,3.96575128,1322.8,1322.7,18.98345064]
[1673307835808,3.96575128,1322.8,1322.7,11.65355064]
[1673307836320,3.96575128,1322.8,1322.7,19.21384064]
[1673307836535,3.96575128,1322.8,1322.7,26.77413064]
[1673307841039,3.96579982,1322.8,1322.7,26.77413064]
[1673307847255,3.9629397,1322.8,1322.7,26.77413064]
[1673307849776,3.9629397,1322.8,1322.7,19.21384064]
[1673307851723,3.9629397,1322.8,1322.7,11.65355064]
[1673307854310,2.26328347,1322.8,1322.7,11.65355064]
[1673307855817,2.26328347,1322.8,1322.7,19.21384064]
[1673307856273,2.26328347,1322.8,1322.7,11.65355064]
[1673307857319,2.26328347,1322.8,1322.7,19.21384064]
[1673307858584,2.26328347,1322.8,1322.7,11.65355064]
[1673307858791,3.96342694,1322.8,1322.7,11.65355064]
[1673307861508,2.26328347,1322.8,1322.7,11.65355064]
[1673307864468,3.96347877,1322.8,1322.7,19.21384064]
[1673307866357,3.96347877,1322.8,1322.7,13.8463618]
[1673307867725,3.96347877,1322.8,1322.7,11.65355064]
[1673307867726,2.26328347,1322.8,1322.7,11.65355064]
[1673307868039,5.09753431,1322.8,1322.7,11.65355064]
[1673307868252,5.16353431,1322.8,1322.7,11.65355064]
[1673307868627,5.16353431,1322.8,1322.7,19.21384064]
[1673307869456,2.32928347,1322.8,1322.7,19.21384064]
[1673307869701,3.96358201,1322.8,1322.7,19.21384064]
[1673307869914,5.09753431,1322.8,1322.7,19.21384064]
[1673307870092,5.16353431,1322.8,1322.7,19.21384064]
[1673307870617,5.11353431,1322.8,1322.7,19.21384064]
[1673307871105,2.27928347,1322.8,1322.7,19.21384064]
[1673307871317,5.04753431,1322.8,1322.7,19.21384064]
[1673307871514,2.27928347,1322.8,1322.7,19.21384064]
[1673307871693,2.21328347,1322.8,1322.7,26.77413064]
[1673307872688,3.91402049,1322.8,1322.7,30.20881612]
[1673307873055,3.91402049,1322.8,1322.7,22.64852612]
[1673307873715,3.91402049,1322.8,1322.7,30.20881612]
[1673307874784,2.21328347,1322.8,1322.7,30.20881612]
[1673307876443,2.21328347,1322.8,1322.7,15.08823612]
[1673307876652,2.21328347,1322.8,1322.7,11.65355064]
[1673307876886,2.21328347,1322.8,1322.7,4.09366064]
[1673307877099,12.60725431,1322.8,1322.6,0.07833416]
[1673307877372,1.70107073,1322.7,1322.6,11.3707648]
[1673307877685,1.70107073,1322.7,1322.6,18.9976248]
[1673307877899,1.70107073,1322.7,1322.6,26.53626031]
[1673307878522,1.70107073,1322.7,1322.6,26.76626031]
[1673307878739,3.96912509,1322.7,1322.6,26.76626031]
[1673307879201,1.70107073,1322.7,1322.6,26.76626031]
[1673307879526,3.96912509,1322.7,1322.6,26.76626031]
[1673307880251,3.96912509,1322.7,1322.6,34.32712031]
[1673307882991,3.96912509,1322.7,1322.6,26.7884848]
[1673307883145,1.70107073,1322.7,1322.6,26.7884848]
[1673307883898,2.83495195,1322.7,1322.6,28.66458268]
[1673307884092,1.70107073,1322.7,1322.6,28.66458268]
[1673307884514,1.70107073,1322.7,1322.6,26.7884848]
[1673307884963,3.96912509,1322.7,1322.6,26.7884848]
[1673307885594,3.96912509,1322.7,1322.6,19.2276248]
[1673307885802,3.96912509,1322.7,1322.6,0.066]
[1673307885803,20.2228852,1322.7,1322.6,0.066]
[1673307886171,27.8491752,1322.7,1322.4,20.15440406]
[1673307886336,1.13392014,1322.5,1322.4,22.82146064]
[1673307886509,1.13392623,1322.5,1322.4,5.73996059]
[1673307886720,26.71828553,1322.6,1322.4,5.73996059]
[1673307887031,25.01741436,1322.6,1322.4,3.86366064]
[1673307887288,25.01741436,1322.6,1322.4,3.79766064]
[1673307887289,1.13394642,1322.5,1322.4,3.79766064]
[1673307887499,2.83340765,1322.5,1322.4,3.79766064]
[1673307887673,1.13336371,1322.5,1322.4,3.79766064]
[1673307887889,2.83342756,1322.5,1322.4,3.79766064]
[1673307888508,2.83342756,1322.5,1322.4,4.02766064]
[1673307888724,2.83342756,1322.5,1322.4,11.58966064]
[1673307888929,2.83342756,1322.5,1322.4,11.65566064]
[1673307889259,1.13338362,1322.5,1322.4,11.65566064]
[1673307893881,16.25624362,1322.5,1322.4,4.09366064]
[1673307894133,16.25624362,1322.5,1322.3,13.9055]
[1673307894134,25.58371756,1322.5,1322.3,3.066]
[1673307894340,0.00239957,1322.3,1322.2,8.19379798]
[1673307894500,0.00239957,1322.3,1322.2,3.88635862]
[1673307894501,1.30139957,1322.3,1322.2,3.88635862]
[1673307894714,2.43383985,1322.3,1322.2,0.02269798]
[1673307895287,1.30139957,1322.3,1322.2,0.02269798]
[1673307895497,0.00239957,1322.3,1322.2,7.58584798]
[1673307895650,0.00239957,1322.3,1322.2,22.77814798]
[1673307896765,0.00239957,1322.3,1322.2,34.34444413]
[1673307899508,0.00239957,1322.3,1322.2,34.34190364]
[1673307901499,0.00239957,1322.3,1322.2,34.33990364]
[1673307901500,0.00439957,1322.3,1322.2,34.33990364]
[1673307901653,0.00239957,1322.3,1322.2,34.34190364]
[1673307901866,0.00239957,1322.3,1322.2,19.21560364]
[1673307902126,0.00239957,1322.3,1322.2,4.11381813]
[1673307902313,0.00239957,1322.3,1322.2,6.54781813]
[1673307902521,0.00239957,1322.3,1322.2,14.17696813]
[1673307903280,0.00239957,1322.3,1322.2,6.61381813]
[1673307903806,0.00239957,1322.3,1322.2,14.17696813]
[1673307904841,0.00239957,1322.3,1322.2,21.74011813]
[1673307906234,0.00239957,1322.3,1322.2,29.30326813]
[1673307906448,0.00239957,1322.3,1322.2,34.07172283]
[1673307907783,8.95017234,1322.5,1322.2,34.07172283]
[1673307907991,8.90257191,1322.5,1322.3,4.02766064]
[1673307908232,8.90257191,1322.5,1322.3,11.58999064]
[1673307908540,8.90257191,1322.5,1322.3,19.21857064]
[1673307908960,8.90257191,1322.5,1322.3,11.65599064]
[1673307910591,16.46407191,1322.5,1322.3,11.65599064]
[1673307912592,25.72561585,1322.5,1322.3,4.09366064]
[1673307912848,16.25644028,1322.4,1322.3,4.02766064]
[1673307913063,16.32244028,1322.4,1322.3,4.02766064]
[1673307913432,8.76044028,1322.4,1322.3,4.02766064]
[1673307914691,1.19844028,1322.4,1322.3,4.02766064]
[1673307914901,1.13244028,1322.4,1322.3,4.02766064]
[1673307916654,2.83248422,1322.4,1322.3,4.02766064]
[1673307917701,1.13244028,1322.4,1322.3,11.59024064]
[1673307917875,1.13244028,1322.4,1322.3,11.65624064]
[1673307919120,17.03167557,1322.5,1322.3,11.65624064]
[1673307919121,10.60261585,1322.5,1322.3,26.78140064]
[1673307920483,1.13244028,1322.4,1322.3,26.78140064]
[1673307920689,10.60261585,1322.5,1322.3,30.21945496]
[1673307920904,10.60261585,1322.5,1322.4,3.79766064]
[1673307921161,2.89848422,1322.5,1322.4,26.48366064]
[1673307921339,2.83248422,1322.5,1322.4,26.54966064]
[1673307921759,2.83248422,1322.5,1322.4,11.42566064]
[1673307922383,2.83248422,1322.5,1322.4,3.86366064]
[1673307922607,2.83248422,1322.5,1322.4,3.79766064]
[1673307923127,1.70004394,1322.5,1322.4,3.79766064]
[1673307925213,3.9680983,1322.5,1322.4,3.79766064]
[1673307929358,1.70004394,1322.5,1322.4,3.79766064]
[1673307929882,1.70204394,1322.5,1322.4,3.79766064]
[1673307930195,1.70004394,1322.5,1322.4,3.79766064]
[1673307930410,1.70004394,1322.5,1322.4,3.79547268]
[1673307931303,3.9680983,1322.5,1322.4,3.79547268]
[1673307934983,2.26805436,1322.5,1322.4,3.79547268]
[1673307935874,2.31805436,1322.5,1322.4,3.79547268]
[1673307936977,4.01845619,1322.5,1322.4,3.79547268]
[1673307937192,2.31805436,1322.5,1322.4,3.79547268]
[1673307937932,2.26805436,1322.5,1322.4,3.79547268]
[1673307942246,25.51854084,1322.5,1322.4,3.79547268]
[1673307942458,27.85173458,1322.5,1322.3,0.31133907]
[1673307942714,1.70044376,1322.4,1322.3,4.04299971]
[1673307943325,1.70044376,1322.4,1322.3,11.60557971]
[1673307943537,1.70044376,1322.4,1322.3,11.67157971]
[1673307944405,3.9676375,1322.4,1322.3,11.67157971]
[1673307947115,1.70044376,1322.4,1322.3,11.67157971]
[1673307947442,3.9676375,1322.4,1322.3,11.67157971]
[1673307947867,1.70044376,1322.4,1322.3,11.67157971]
[1673307948384,1.70044376,1322.4,1322.3,12.44708441]
[1673307949831,1.70044376,1322.4,1322.3,20.00966441]
[1673307952504,1.70044376,1322.4,1322.3,20.00710743]
[1673307954274,1.70044376,1322.4,1322.3,19.23160273]
[1673307956479,3.9676375,1322.4,1322.3,19.23160273]
[1673307958479,1.70044376,1322.4,1322.3,19.23160273]
[1673307958638,1.70244376,1322.4,1322.3,19.22960273]
[1673307958848,1.70044376,1322.4,1322.3,19.23160273]
[1673307960427,1.70044376,1322.4,1322.3,11.66902273]
[1673307961264,3.9676375,1322.4,1322.3,4.10644273]
[1673307961643,3.9676375,1322.4,1322.3,4.04044273]
[1673307962470,3.96363958,1322.4,1322.3,4.04044273]
[1673307963050,1.13393543,1322.4,1322.3,32.39893265]
[1673307963286,1.13393189,1322.4,1322.3,32.46493265]
[1673307963598,2.26719374,1322.5,1322.3,32.46493265]
[1673307963830,2.26719374,1322.5,1322.4,3.79766064]
[1673307964159,2.26719374,1322.5,1322.4,26.71366064]
[1673307964468,2.26719374,1322.5,1322.4,19.21766064]
[1673307964623,2.26919374,1322.5,1322.4,19.21566064]
[1673307964838,2.26719374,1322.5,1322.4,19.21766064]
[1673307965307,2.26719374,1322.5,1322.4,11.65566064]
[1673307966150,2.26719374,1322.5,1322.4,19.21766064]
[1673307966470,2.26719374,1322.5,1322.4,29.83862403]
[1673307967058,5.16744458,1322.6,1322.4,29.83862403]
[1673307967263,5.16744458,1322.6,1322.5,3.79766064]
[1673307967479,5.16744458,1322.6,1322.5,11.35909064]
[1673307967721,5.16744458,1322.6,1322.5,11.42509064]
[1673307968459,5.16744458,1322.6,1322.5,26.77795064]
[1673307968626,5.16744458,1322.6,1322.5,30.51784204]
[1673307968841,0.066,1322.6,1322.5,34.09862993]
[1673307969046,1.13353883,1322.6,1322.5,34.09862993]
[1673307969276,1.13350854,1322.6,1322.5,34.09862993]
[1673307969485,1.13350729,1322.6,1322.5,34.09862993]
[1673307969733,1.13350547,1322.6,1322.5,30.51784204]
[1673307969945,2.26719374,1322.7,1322.5,30.51784204]
[1673307970255,2.26719374,1322.7,1322.6,26.71024064]
[1673307970413,2.26719374,1322.7,1322.6,30.60699684]
[1673307970840,5.16744458,1322.8,1322.6,30.60699684]
[1673307971095,5.16744458,1322.8,1322.7,3.79766064]
[1673307971288,5.16744458,1322.8,1322.7,11.58795064]
[1673307971498,5.16744458,1322.8,1322.7,11.65395064]
[1673307971902,5.16744458,1322.8,1322.7,4.09366064]
[1673307972116,5.16587495,1322.8,1322.7,13.89256432]
[1673307972343,5.16587495,1322.8,1322.7,13.95856432]
[1673307973080,2.33162411,1322.8,1322.7,29.07914432]
[1673307973260,3.96411052,1322.8,1322.7,29.07914432]
[1673307974306,1.69848641,1322.8,1322.7,29.07914432]
[1673307974833,2.83019418,1322.8,1322.7,36.63943432]